Workbook

Sheet Расчетная
B2: Входящие цены | I2: Первичные цены | L2: Вторичные цены | O2: Цифры БЕЗ НДС18%
B4: Наименование | C4: Хар-ки | D4: кол-во | E4: вход без% | F4: вход | G4: сумма | I4: Цена | J4: Стоимость | L4: Цена | M4: Стоимость | O4: Цена БЕЗ | P4: Стоимость БЕЗ | Q4: НДС
A5: 1 | B5: Огнетушитель порошковый ОП-2 (з) | C5: АВСЕ | D5: 20 | E5: 230 | F5: =ROUNDUP(E5*1.18, 2) -> 271.4 | G5: =F5*D5 -> 5428 | I5: =ROUNDUP(F5*$F$34+$D$34, 0) -> 503 | J5: =I5*D5 -> 10060 | L5: =ROUNDUP(F5*$F$38+$D$38, 0) -> 623 | M5: =L5*D5 -> 12460 | O5: =I5-(ROUNDUP((I5/1.18-I5)*(-1), 2)) -> 426.27 | P5: =O5*D5 -> 8525.4 | Q5: =I5-O5 -> 76.73
A6: 2 | B6: Огнетушитель порошковый ОП-4(З) | C6: ВСЕ | D6: 20 | E6: 360 | F6: 424.8 | G6: =F6*D6 -> 8496 | I6: 710 | J6: =I6*D6 -> 14200 | L6: 850 | M6: =L6*D6 -> 17000 | O6: =I6-(ROUND((I6/1.18-I6)*(-1), 2)) -> 601.69 | P6: =O6*D6 -> 12033.8 | Q6: =I6-O6 -> 108.31
A7: 3 | B7: Огнетушитель порошковый ОП-5(з) | C7: ВСЕ | D7: 55 | E7: 410 | F7: 483.8 | G7: =F7*D7 -> 26609 | I7: 790 | J7: =I7*D7 -> 43450 | L7: =ROUNDUP(F7*$F$38+$D$38, 0) -> 938 | M7: =L7*D7 -> 51590 | O7: =I7-(ROUND((I7/1.18-I7)*(-1), 2)) -> 669.49 | P7: =O7*D7 -> 36821.95 | Q7: =I7-O7 -> 120.51
A8: 4 | B8: Огнетушитель порошковый ОП-35(з) | C8: АВСЕ | D8: 21 | E8: 3030 | F8: 3575.4 | G8: =F8*D8 -> 75083.4 | I8: 4963 | J8: =I8*D8 -> 104223 | L8: 5513 | M8: 115773 | O8: =I8-(ROUNDUP((I8/1.18-I8)*(-1), 2)) -> 4205.93 | P8: 88324.53 | Q8: 757.07
A9: 5 | B9: Огнетушитель углекислотный ОУ-2 | C9: ВСЕ | D9: 10 | E9: 565 | F9: 666.7 | G9: =F9*D9 -> 6667 | I9: 1037 | J9: =I9*D9 -> 10370 | L9: 1208 | M9: 12080 | O9: =I9-(ROUND((I9/1.18-I9)*(-1), 2)) -> 878.81 | P9: 8788.1 | Q9: 158.19
A10: 6 | B10: Огнетушитель углекислотный ОУ-5 | C10: ВСЕ | D10: 2 | E10: 1055 | F10: 1244.9 | G10: =F10*D10 -> 2489.8 | I10: 1817 | J10: =I10*D10 -> 3634 | L10: 2064 | M10: 4128 | O10: =I10-(ROUNDUP((I10/1.18-I10)*(-1), 2)) -> 1539.83 | P10: 3079.66 | Q10: 277.17
A11: 7 | B11: Огнетушитель углекислотный ОУ-10 | C11: АВСЕ | D11: 59 | E11: 2620 | F11: =ROUNDUP(E11*1.18, 2) -> 3091.6 | G11: 182404.4 | I11: 4310 | J11: 254290 | L11: 4797 | M11: 283023 | O11: =I11-(ROUNDUP((I11/1.18-I11)*(-1), 2)) -> 3652.54 | P11: 215499.86 | Q11: 657.46
A12: 8 | B12: ЩП-В (Стенд пожарный закрытый «КОМ с бункером для песка 0,1м3 (металлический) | D12: 10 | E12: 4200 | F12: 4956 | G12: 49560 | I12: 6827 | J12: 68270 | L12: 7556 | M12: 75560 | O12: =I12-(ROUND((I12/1.18-I12)*(-1), 2)) -> 5785.59 | P12: 57855.9 | Q12: 1041.41
A13: 9 | B13: Щит пожарный металлический ЩП-В в комплекте | D13: 5 | E13: 6695 | F13: 7900.1 | G13: 39500.5 | I13: 10802 | J13: =I13*D13 -> 54010 | L13: 11914 | M13: 59570 | O13: 9154.24 | P13: 45771.2 | Q13: 1647.76
A14: 10 | B14: Щит пожарный металлический ЩП-Е в комплекте | D14: 2 | E14: 9035 | F14: 10661.3 | G14: 21322.6 | I14: 14529 | J14: =I14*D14 -> 29058 | L14: 16000 | M14: 32000 | O14: 12312.71 | P14: 24625.42 | Q14: 2216.29
A15: 11 | B15: Ящик для песка 0,5куб.м | D15: 10 | E15: 2350 | F15: 2773 | G15: 27730 | I15: 3880 | J15: =I15*D15 -> 38800 | L15: 4326 | M15: 43260 | O15: 3288.14 | P15: 32881.4 | Q15: 591.86
A16: 12 | B16: Лом пожарный ЛПЛ-Щ | D16: 5 | E16: 399 | F16: 470.82 | G16: 2354.1 | I16: 772 | J16: 3860 | L16: 918 | M16: 4590 | O16: =I16-(ROUNDUP((I16/1.18-I16)*(-1), 2)) -> 654.23 | P16: 3271.15 | Q16: 117.77
A17: 13 | B17: Ножницы для резки проводов диэлектрические НД-1 | D17: 1 | E17: 800 | F17: 944 | G17: 944 | I17: 1411 | J17: =I17*D17 -> 1411 | L17: 1619 | M17: 1619 | O17: =I17-(ROUND((I17/1.18-I17)*(-1), 2)) -> 1195.76 | P17: 1195.76 | Q17: 215.24
A18: 14 | B18: Коврик диэлектрический 1000х1000 мм ГОСТ 4997-75 | D18: 1 | E18: 850 | F18: =ROUNDUP(E18*1.18, 2) -> 1003 | G18: 1003 | I18: 1491 | J18: =I18*D18 -> 1491 | L18: 1706 | M18: 1706 | O18: 1263.56 | P18: 1263.56 | Q18: 227.44
A19: 15 | F19: 0 | G19: =F19*D19 -> 0 | I19: 136 | J19: 0 | L19: 221 | M19: 0 | O19: =I19-(ROUND((I19/1.18-I19)*(-1), 2)) -> 115.25 | P19: 0 | Q19: 20.75
A20: 16 | F20: 0 | G20: =F20*D20 -> 0 | I20: 136 | J20: =I20*D20 -> 0 | L20: 221 | M20: 0 | O20: =I20-(ROUNDUP((I20/1.18-I20)*(-1), 2)) -> 115.25 | P20: 0 | Q20: 20.75
A21: 17 | F21: 0 | G21: =F21*D21 -> 0 | I21: 136 | J21: =I21*D21 -> 0 | L21: 221 | M21: 0 | O21: =I21-(ROUND((I21/1.18-I21)*(-1), 2)) -> 115.25 | P21: 0 | Q21: 20.75
A22: 18 | F22: 0 | G22: =F22*D22 -> 0 | I22: 136 | J22: =I22*D22 -> 0 | L22: 221 | M22: 0 | O22: =I22-(ROUNDUP((I22/1.18-I22)*(-1), 2)) -> 115.25 | P22: 0 | Q22: 20.75
A23: 19 | F23: 0 | G23: =F23*D23 -> 0 | I23: 136 | J23: 0 | L23: 221 | M23: 0 | O23: =I23-(ROUNDUP((I23/1.18-I23)*(-1), 2)) -> 115.25 | P23: 0 | Q23: 20.75
A24: 20 | F24: 0 | G24: 0 | I24: 136 | J24: 0 | L24: 221 | M24: 0 | O24: =I24-(ROUND((I24/1.18-I24)*(-1), 2)) -> 115.25 | P24: 0 | Q24: 20.75
A25: 21 | F25: 0 | G25: 0 | I25: 136 | J25: =I25*D25 -> 0 | L25: 221 | M25: 0 | O25: 115.25 | P25: 0 | Q25: 20.75
A26: 22 | F26: 0 | G26: 0 | I26: 136 | J26: =I26*D26 -> 0 | L26: 221 | M26: 0 | O26: 115.25 | P26: 0 | Q26: 20.75
A27: 23 | F27: 0 | G27: 0 | I27: 136 | J27: 0 | L27: 221 | M27: 0 | O27: 115.25 | P27: 0 | Q27: 20.75
A28: 24 | F28: 0 | G28: 0 | I28: 136 | J28: 0 | L28: 221 | M28: 0 | O28: =I28-(ROUNDUP((I28/1.18-I28)*(-1), 2)) -> 115.25 | P28: 0 | Q28: 20.75
A29: 25 | F29: 0 | G29: 0 | I29: 136 | J29: =I29*D29 -> 0 | L29: 221 | M29: 0 | O29: 115.25 | P29: 0 | Q29: 20.75
A30: 26 | F30: =ROUNDUP(E30*1.18, 2) -> 0 | G30: 0 | I30: 136 | J30: =I30*D30 -> 0 | L30: 221 | M30: 0 | O30: 115.25 | P30: 0 | Q30: 20.75
F31: =ROUNDUP(E31*1.18, 2) -> 0 | G31: =F31*D31 -> 0 | I31: 136 | J31: =I31*D31 -> 0 | L31: =ROUNDUP(F31*$F$38+$D$38, 0) -> 221 | M31: =L31*D31 -> 0 | O31: =I31-(ROUND((I31/1.18-I31)*(-1), 2)) -> 115.25 | P31: =O31*D31 -> 0 | Q31: =I31-O31 -> 20.75
D33: дос на поз | F33: Накрутка | G33: сумм зак | H33: доставка | I33: выручка | J33: сумма | K33: НДС18% | L33: выручка | M33: сумма | N33: НДС18% | P33: сумма
D34: =ROUNDUP(H34/SUM(D5:D33), 0) -> 136 | E34: =SUM(E5:E31) -> 32599 | F34: 1.35 | G34: =SUM(G5:G31) -> 449591.8 | H34: 30000 | I34: =J34-G34-H34 -> 157535.2 | J34: =SUM(J5:J31) -> 637127 | K34: =ROUNDUP((J34/1.18-J34)*(-1),2) -> 97188.87 | L34: =M34-H34-G34 -> 234767.2 | M34: =SUM(M5:M31) -> 714359 | N34: =ROUNDUP((M34/1.18-M34)*(-1),2) -> 108970.02 | P34: =SUM(P5:P32) -> 539937.69
J35: =I34/(J34/100)/100 -> 0.2472587098 | P35: =J34-P34 -> 97189.31
D37: дос на поз | F37: Накрутка | G37: сумм зак | H37: доставка | I37: выручка | J37: сумма | K37: НДС18%
D38: =ROUNDUP(H38/SUM(D20:D37), 0) -> 221 | E38: =SUM(E20:E34)-E34 -> 0 | F38: 1.48 | G38: =SUM(G5:G30) -> 449591.8 | H38: 30000 | I38: =J38-G38-H38 -> 234767.2 | J38: =SUM(M5:M31) -> 714359 | K38: =ROUNDUP((J38/1.18-J38)*(-1),2) -> 108970.02
J39: =I38/(J38/100)/100 -> 0.3286403615

Sheet МБМ18%
B2: Коммерческое предложение
B4: Для .
B6: Добрый день, предлагаем рассмотреть предложение на поставку оборудования:
B8: № | C8: Товар | D8: Кол-во | E8: Ед. | F8: Цена (с НДС 18%), руб. | G8: Сумма (с НДС 18%), руб.
B9: 1 | C9: =Расчетная!B5&" ("&(Расчетная!C5)&")" -> Огнетушитель порошковый ОП-2 (з) (АВСЕ) | D9: =Расчетная!D5 -> 20 | E9: шт. | F9: =Расчетная!L5 -> 623 | G9: =Расчетная!M5 -> 12460
B10: 2 | C10: =Расчетная!B6&" ("&(Расчетная!C6)&")" -> Огнетушитель порошковый ОП-4(З) (ВСЕ) | D10: =Расчетная!D6 -> 20 | E10: шт. | F10: =Расчетная!L6 -> 850 | G10: =Расчетная!M6 -> 17000
B11: 3 | C11: =Расчетная!B7&" ("&(Расчетная!C7)&")" -> Огнетушитель порошковый ОП-5(з) (ВСЕ) | D11: =Расчетная!D7 -> 55 | E11: шт. | F11: =Расчетная!L7 -> 938 | G11: =Расчетная!M7 -> 51590
B12: 4 | C12: =Расчетная!B8&" ("&(Расчетная!C8)&")" -> Огнетушитель порошковый ОП-35(з) (АВСЕ) | D12: =Расчетная!D8 -> 21 | E12: шт. | F12: =Расчетная!L8 -> 5513 | G12: =Расчетная!M8 -> 115773
B13: 5 | C13: =Расчетная!B9&" ("&(Расчетная!C9)&")" -> Огнетушитель углекислотный ОУ-2 (ВСЕ) | D13: =Расчетная!D9 -> 10 | E13: шт. | F13: =Расчетная!L9 -> 1208 | G13: =Расчетная!M9 -> 12080
B14: 6 | C14: =Расчетная!B10&" ("&(Расчетная!C10)&")" -> Огнетушитель углекислотный ОУ-5 (ВСЕ) | D14: =Расчетная!D10 -> 2 | E14: шт. | F14: =Расчетная!L10 -> 2064 | G14: =Расчетная!M10 -> 4128
B15: 7 | C15: =Расчетная!B11&" ("&(Расчетная!C11)&")" -> Огнетушитель углекислотный ОУ-10 (АВСЕ) | D15: =Расчетная!D11 -> 59 | E15: шт. | F15: =Расчетная!L11 -> 4797 | G15: =Расчетная!M11 -> 283023
B16: 8 | C16: =Расчетная!B12&" ("&(Расчетная!C12)&")" -> ЩП-В (Стенд пожарный закрытый «КОМ с бункером для песка 0,1м3 (металлический) () | D16: =Расчетная!D12 -> 10 | E16: шт. | F16: =Расчетная!L12 -> 7556 | G16: =Расчетная!M12 -> 75560
B17: 9 | C17: =Расчетная!B13&" ("&(Расчетная!C13)&")" -> Щит пожарный металлический ЩП-В в комплекте () | D17: =Расчетная!D13 -> 5 | E17: шт. | F17: =Расчетная!L13 -> 11914 | G17: =Расчетная!M13 -> 59570
B18: 10 | C18: =Расчетная!B14&" ("&(Расчетная!C14)&")" -> Щит пожарный металлический ЩП-Е в комплекте () | D18: =Расчетная!D14 -> 2 | E18: шт. | F18: =Расчетная!L14 -> 16000 | G18: =Расчетная!M14 -> 32000
B19: 11 | C19: =Расчетная!B15&" ("&(Расчетная!C15)&")" -> Ящик для песка 0,5куб.м () | D19: =Расчетная!D15 -> 10 | E19: шт. | F19: =Расчетная!L15 -> 4326 | G19: =Расчетная!M15 -> 43260
B20: 12 | C20: =Расчетная!B16&" ("&(Расчетная!C16)&")" -> Лом пожарный ЛПЛ-Щ () | D20: =Расчетная!D16 -> 5 | E20: шт. | F20: =Расчетная!L16 -> 918 | G20: =Расчетная!M16 -> 4590
B21: 13 | C21: =Расчетная!B17&" ("&(Расчетная!C17)&")" -> Ножницы для резки проводов диэлектрические НД-1 () | D21: =Расчетная!D17 -> 1 | E21: шт. | F21: =Расчетная!L17 -> 1619 | G21: =Расчетная!M17 -> 1619
B22: 14 | C22: =Расчетная!B18&" ("&(Расчетная!C18)&")" -> Коврик диэлектрический 1000х1000 мм ГОСТ 4997-75 () | D22: =Расчетная!D18 -> 1 | E22: шт. | F22: =Расчетная!L18 -> 1706 | G22: =Расчетная!M18 -> 1706
D23: Итого: | G23: =Расчетная!M34 -> 714359
D24: В том числе НДС 18%: | G24: =Расчетная!N34 -> 108970.02
B26: - Срок поставки 20 дней;
B27: - Цена указана с учетом доставки до г. Архангельск;
B28: - Оплата в размере 100% по факту поставки товара Покупателю.
B30: С уважением,
B31: Менеджер отдела продаж «МБМ-Сервис»
B32: Дернов Илья Николаевич
B33: Тел.(342)228-16-16, доп.146; т/ф 228-11-28
B34: e-mail: din@mbm-group.ru
B35: сайт: www.mbm-group.ru

Sheet МБМ
B2: Коммерческое предложение
B4: Для .
B6: Добрый день, предлагаем рассмотреть предложение на поставку оборудования:
B8: № | C8: Товар | D8: Кол-во | E8: Ед. | F8: Цена (Без НДС 18%), руб. | G8: Сумма (Без НДС 18%), руб.
B9: 1 | C9: =Расчетная!B5&" ("&(Расчетная!C5)&")" -> Огнетушитель порошковый ОП-2 (з) (АВСЕ) | D9: =Расчетная!D5 -> 20 | E9: шт. | F9: =Расчетная!O5 -> 426.27 | G9: =Расчетная!P5 -> 8525.4
B10: 2 | C10: =Расчетная!B6&" ("&(Расчетная!C6)&")" -> Огнетушитель порошковый ОП-4(З) (ВСЕ) | D10: =Расчетная!D6 -> 20 | E10: шт. | F10: =Расчетная!O6 -> 601.69 | G10: =Расчетная!P6 -> 12033.8
B11: 3 | C11: =Расчетная!B7&" ("&(Расчетная!C7)&")" -> Огнетушитель порошковый ОП-5(з) (ВСЕ) | D11: =Расчетная!D7 -> 55 | E11: шт. | F11: =Расчетная!O7 -> 669.49 | G11: =Расчетная!P7 -> 36821.95
B12: 4 | C12: =Расчетная!B8&" ("&(Расчетная!C8)&")" -> Огнетушитель порошковый ОП-35(з) (АВСЕ) | D12: =Расчетная!D8 -> 21 | E12: шт. | F12: =Расчетная!O8 -> 4205.93 | G12: =Расчетная!P8 -> 88324.53
B13: 5 | C13: =Расчетная!B9&" ("&(Расчетная!C9)&")" -> Огнетушитель углекислотный ОУ-2 (ВСЕ) | D13: =Расчетная!D9 -> 10 | E13: шт. | F13: =Расчетная!O9 -> 878.81 | G13: =Расчетная!P9 -> 8788.1
B14: 6 | C14: =Расчетная!B10&" ("&(Расчетная!C10)&")" -> Огнетушитель углекислотный ОУ-5 (ВСЕ) | D14: =Расчетная!D10 -> 2 | E14: шт. | F14: =Расчетная!O10 -> 1539.83 | G14: =Расчетная!P10 -> 3079.66
B15: 7 | C15: =Расчетная!B11&" ("&(Расчетная!C11)&")" -> Огнетушитель углекислотный ОУ-10 (АВСЕ) | D15: =Расчетная!D11 -> 59 | E15: шт. | F15: =Расчетная!O11 -> 3652.54 | G15: =Расчетная!P11 -> 215499.86
B16: 8 | C16: =Расчетная!B12&" ("&(Расчетная!C12)&")" -> ЩП-В (Стенд пожарный закрытый «КОМ с бункером для песка 0,1м3 (металлический) () | D16: =Расчетная!D12 -> 10 | E16: шт. | F16: =Расчетная!O12 -> 5785.59 | G16: =Расчетная!P12 -> 57855.9
B17: 9 | C17: =Расчетная!B13&" ("&(Расчетная!C13)&")" -> Щит пожарный металлический ЩП-В в комплекте () | D17: =Расчетная!D13 -> 5 | E17: шт. | F17: =Расчетная!O13 -> 9154.24 | G17: =Расчетная!P13 -> 45771.2
B18: 10 | C18: =Расчетная!B14&" ("&(Расчетная!C14)&")" -> Щит пожарный металлический ЩП-Е в комплекте () | D18: =Расчетная!D14 -> 2 | E18: шт. | F18: =Расчетная!O14 -> 12312.71 | G18: =Расчетная!P14 -> 24625.42
B19: 11 | C19: =Расчетная!B15&" ("&(Расчетная!C15)&")" -> Ящик для песка 0,5куб.м () | D19: =Расчетная!D15 -> 10 | E19: шт. | F19: =Расчетная!O15 -> 3288.14 | G19: =Расчетная!P15 -> 32881.4
B20: 12 | C20: =Расчетная!B16&" ("&(Расчетная!C16)&")" -> Лом пожарный ЛПЛ-Щ () | D20: =Расчетная!D16 -> 5 | E20: шт. | F20: =Расчетная!O16 -> 654.23 | G20: =Расчетная!P16 -> 3271.15
B21: 13 | C21: =Расчетная!B17&" ("&(Расчетная!C17)&")" -> Ножницы для резки проводов диэлектрические НД-1 () | D21: =Расчетная!D17 -> 1 | E21: шт. | F21: =Расчетная!O17 -> 1195.76 | G21: =Расчетная!P17 -> 1195.76
B22: 14 | C22: =Расчетная!B18&" ("&(Расчетная!C18)&")" -> Коврик диэлектрический 1000х1000 мм ГОСТ 4997-75 () | D22: =Расчетная!D18 -> 1 | E22: шт. | F22: =Расчетная!O18 -> 1263.56 | G22: =Расчетная!P18 -> 1263.56
D23: Итого: | G23: =Расчетная!P34 -> 539937.69
B26: - Срок поставки 20 дней;
B27: - Цена указана с учетом доставки до г. Архангельск;
B28: - Оплата в размере 100% по факту поставки товара Покупателю.
B30: С уважением,
B31: Менеджер отдела продаж «МБМ-Сервис»
B32: Дернов Илья Николаевич
B33: Тел.(342)228-16-16, доп.146; т/ф 228-11-28
B34: e-mail: din@mbm-group.ru
B35: сайт: www.mbm-group.ru
